bitfinex/quotes_SOLUSD_20250429
["timestamp","ask_amount","ask_price","bid_price","bid_amount"]
[1745889606054,18.02607638,147.96,147.91,18.02607638]
[1745889606575,18.02607638,147.95,147.87,6.08642726]
[1745889606764,18.02607638,147.9,147.83,80.9]
[1745889607076,18.02607638,147.89,147.84,18.02607638]
[1745889607262,18.02607638,147.88,147.84,18.02607638]
[1745889607442,18.02607638,147.89,147.83,6.0879248]
[1745889607643,18.02607638,147.89,147.85,18.02607638]
[1745889607949,1.5239,147.9,147.87,18.02607638]
[1745889608155,82.9,147.93,147.89,18.02607638]
[1745889608356,82.9,147.93,147.9,18.02607638]
[1745889608560,33.82997638,147.94,147.9,18.02607638]
[1745889608855,1.5239,147.94,147.91,18.02607638]
[1745889609046,19.54997638,147.94,147.9,18.02607638]
[1745889609249,18.02607638,147.93,147.89,18.02607638]
[1745889609448,18.02607638,147.93,147.87,6.22855569]
[1745889609669,18.02607638,147.93,147.89,18.02607638]
[1745889610040,18.02607638,147.91,147.86,112.9867616]
[1745889610239,18.02607638,147.91,147.87,18.02607638]
[1745889610541,18.02607638,147.92,147.88,18.02607638]
[1745889610741,82.9,147.93,147.9,18.02607638]
[1745889610957,1.5239,147.94,147.91,18.02607638]
[1745889612062,18.02607638,147.95,147.91,18.02607638]
[1745889612285,82.9,147.96,147.92,18.02607638]
[1745889612442,14.28,147.98,147.94,18.02607638]
[1745889612639,14.28,147.98,147.95,18.02607638]
[1745889613861,18.02607638,147.97,147.93,18.02607638]
[1745889614687,18.02607638,147.95,147.87,20.7505]
[1745889614877,18.02607638,147.94,147.9,18.02607638]
[1745889616064,82.9,147.96,147.92,18.02607638]
[1745889616795,82.9,147.96,147.93,18.02607638]
[1745889616980,14.28,147.98,147.95,18.02607638]
[1745889617278,0.2,147.96,147.95,18.02607638]
[1745889618692,0.03,147.99,147.95,18.02607638]
[1745889618895,0.03,147.99,147.96,18.02607638]
[1745889619291,0.03,147.99,147.95,6.08308869]
[1745889619791,0.03,147.99,147.95,18.02607638]
[1745889620092,18.05607638,147.99,147.95,18.02607638]
[1745889620274,18.02607638,147.97,147.93,18.02607638]
[1745889621572,18.02607638,147.97,147.93,24.11003062]
[1745889621794,18.02607638,147.98,147.94,18.02607638]
[1745889622481,18.05607638,147.99,147.94,18.02607638]
[1745889622688,18.05607638,147.99,147.95,18.02607638]
[1745889622998,18.05607638,147.99,147.94,18.02607638]
[1745889623666,18.02607638,147.98,147.94,18.02607638]
[1745889623868,18.02607638,147.98,147.93,24.10988691]
[1745889624196,18.02607638,147.98,147.94,18.02607638]
[1745889625394,18.02607638,147.97,147.93,18.02607638]
[1745889625975,18.02607638,147.98,147.93,18.02607638]
[1745889626793,18.02607638,147.98,147.94,18.02607638]
[1745889627292,18.02607638,147.98,147.93,18.02607638]
[1745889627497,24.10804178,147.98,147.93,18.02607638]
[1745889628177,18.02607638,147.98,147.94,18.02607638]
[1745889629874,18.02607638,147.98,147.93,24.10999998]
[1745889630276,24.10800526,147.98,147.93,24.10999998]
[1745889630683,18.02607638,147.98,147.93,24.10999998]
[1745889631404,0.03,147.99,147.91,26.14216157]
[1745889631700,18.02607638,147.95,147.91,50.25293462]
[1745889631904,18.02607638,147.95,147.87,23.10044923]
[1745889631905,18.02607638,147.93,147.88,18.02607638]
[1745889632108,18.02607638,147.92,147.88,18.02607638]
[1745889632611,100.92607638,147.94,147.89,18.02607638]
[1745889632796,15.7207,147.97,147.93,18.02607638]
[1745889633108,0.03,147.99,147.95,18.02607638]
[1745889633697,0.03,147.99,147.96,24.10848258]
[1745889633884,0.03,147.99,147.97,18.02607638]
[1745889634878,0.03,147.99,147.98,18.02607638]
[1745889635108,0.03,147.99,147.97,18.02607638]
[1745889636703,0.03,147.99,147.98,18.02607638]
[1745889637600,0.03,147.99,147.97,18.02607638]
[1745889639001,0.03,147.99,147.97,24.10831043]
[1745889639212,0.03,147.99,147.98,18.02607638]
[1745889641023,0.03,147.99,147.95,26.14216157]
[1745889641224,0.03,147.99,147.96,18.02607638]
[1745889641509,0.03,147.99,147.95,18.16823795]
[1745889642410,0.03,147.99,147.96,18.02607638]
[1745889644603,0.03,147.99,147.97,18.16823795]
[1745889644803,0.03,147.99,147.98,18.02607638]
[1745889644998,0.03,147.99,147.96,18.02607638]
[1745889645503,18.05607638,147.99,147.95,24.25136368]
[1745889647823,0.03,147.99,147.95,24.25136368]
[1745889649806,0.03,147.99,147.95,6.2252873]
[1745889650013,0.03,147.99,147.95,18.16823795]
[1745889650802,18.05607638,147.99,147.95,18.02607638]
[1745889651119,18.02607638,147.97,147.91,1.6212]
[1745889651318,18.02607638,147.94,147.9,14.2]
[1745889651612,18.02607638,147.93,147.9,0.14216157]
[1745889651818,18.02607638,147.94,147.9,18.16823795]
[1745889652213,18.02607638,147.94,147.9,18.02607638]
[1745889652410,18.02607638,147.94,147.89,6.08545512]
[1745889652614,18.02607638,147.94,147.9,18.16823795]
[1745889652913,18.02607638,147.95,147.9,24.11124233]
[1745889653515,24.1092372,147.95,147.9,24.11124233]
[1745889653819,18.02607638,147.94,147.9,24.11124233]
[1745889655022,18.02607638,147.95,147.91,18.02607638]
[1745889655239,27.6546,147.99,147.94,18.02607638]
[1745889655526,45.68067638,147.99,147.94,18.02607638]
[1745889655824,18.02607638,147.98,147.94,18.02607638]
[1745889657730,19.68067638,147.99,147.95,18.02607638]
[1745889658019,0.03,147.99,147.95,18.02607638]
[1745889659125,24.1376237,147.99,147.95,18.02607638]
[1745889659428,24.1376237,147.99,147.94,18.02607638]
[1745889660435,0.03,147.99,147.95,18.02607638]
[1745889660813,0.03,147.99,147.96,18.02607638]
[1745889661133,0.03,147.99,147.97,18.02607638]
[1745889661316,0.03,147.99,147.96,18.02607638]
[1745889661626,0.03,147.99,147.95,18.02607638]
[1745889662235,0.03,147.99,147.96,18.02607638]
[1745889663043,0.03,147.99,147.95,18.02607638]
[1745889663220,18.05607638,147.99,147.94,24.10928042]
[1745889665331,18.02607638,147.98,147.94,18.02607638]
[1745889665524,18.02607638,147.98,147.93,18.16823795]
[1745889666536,18.02607638,147.98,147.93,24.25210489]
[1745889667029,18.02607638,147.98,147.94,18.02607638]
[1745889667419,18.02607638,147.98,147.93,6.22602851]
[1745889667732,18.02607638,147.96,147.92,18.02607638]
[1745889667941,18.02607638,147.95,147.91,14.04]
[1745889668110,18.02607638,147.95,147.9,18.02607638]
[1745889668312,18.02607638,147.95,147.9,0.14216157]
[1745889668513,18.02607638,147.95,147.91,18.02607638]
[1745889669733,18.02607638,147.96,147.92,18.02607638]
[1745889669931,6.08266431,147.97,147.92,18.02607638]
[1745889670142,18.02607638,147.96,147.92,18.02607638]
[1745889670520,18.02607638,147.96,147.91,18.02607638]
[1745889670722,24.10889464,147.96,147.91,18.02607638]
[1745889671030,18.02607638,147.94,147.89,0.14216157]
[1745889671223,18.02607638,147.93,147.89,0.14216157]
[1745889671723,18.02607638,147.93,147.88,50.11194902]
[1745889671925,18.02607638,147.93,147.89,0.14216157]
[1745889672731,24.73316255,147.95,147.9,18.02607638]
[1745889672940,84.4364,147.96,147.93,18.02607638]
[1745889673135,0.2,147.94,147.92,18.02607638]
[1745889673352,0.2,147.94,147.91,18.02607638]
[1745889674137,0.2,147.94,147.93,18.02607638]
[1745889674314,18.02607638,147.96,147.92,18.02607638]
[1745889674638,18.02607638,147.96,147.91,0.14216157]
[1745889674838,24.10900519,147.96,147.91,18.16823795]
[1745889675739,18.02607638,147.96,147.92,18.02607638]
[1745889676144,82.9,147.98,147.91,6.22686755]
[1745889676326,39.74469095,147.99,147.91,51.60461801]
[1745889676524,39.74469095,147.99,147.95,18.02607638]
[1745889677543,39.74469095,147.99,147.94,24.10960717]
[1745889677840,39.74469095,147.99,147.94,18.02607638]
[1745889678027,18.02607638,147.97,147.93,18.02607638]
[1745889678223,18.02607638,147.97,147.91,32.22682548]
[1745889678438,18.02607638,147.97,147.92,18.02607638]
[1745889678630,18.02607638,147.97,147.93,18.02607638]
[1745889679240,36.67572524,147.98,147.93,18.02607638]
[1745889679445,18.02607638,147.98,147.94,18.02607638]
[1745889679648,122.64469095,147.99,147.94,18.02607638]
[1745889679829,96.97,147.99,147.96,18.02607638]
[1745889681330,114.99607638,147.99,147.95,18.02607638]
[1745889683130,32.09607638,147.99,147.95,18.02607638]
[1745889684245,38.17761938,147.99,147.95,18.02607638]
[1745889684443,24.13761938,147.99,147.95,18.02607638]
[1745889685257,18.05607638,147.99,147.95,18.02607638]
[1745889687350,24.13757481,147.99,147.95,18.02607638]
[1745889687965,0.03,147.99,147.94,0.14216157]
[1745889688277,0.03,147.99,147.98,18.16823795]
[1745889688633,0.03,147.99,147.98,36.19431433]
[1745889688866,0.03,147.99,147.98,118.44519864]
[1745889689067,0.03,147.99,147.98,129.92223201]
[1745889690988,0.03,147.99,147.98,106.50102521]
[1745889691275,0.03,147.99,147.91,6.08478128]
[1745889691276,18.05607638,147.99,147.91,6.08478128]
[1745889691483,18.02607638,147.96,147.92,18.02607638]
[1745889691648,18.02607638,147.96,147.93,0.14216157]
[1745889691849,18.67964886,147.99,147.92,18.02607638]
[1745889692070,18.02607638,147.96,147.92,18.02607638]
[1745889692367,18.02607638,147.96,147.93,0.14216157]
[1745889693258,18.02607638,147.96,147.92,18.02607638]
[1745889693465,18.02607638,147.96,147.93,0.14216157]
[1745889694271,18.02607638,147.97,147.93,18.16823795]
[1745889694776,18.05607638,147.99,147.94,18.02607638]
[1745889694954,0.03,147.99,147.97,18.02607638]
[1745889695942,0.03,147.99,147.98,18.16823795]
[1745889696563,0.03,147.99,147.98,0.14216157]
[1745889697154,0.03,147.99,147.97,0.14216157]
[1745889697465,0.03,147.99,147.96,18.02607638]
[1745889697662,18.05607638,147.99,147.95,18.02607638]
[1745889697966,18.05607638,147.99,147.95,24.10918814]
[1745889698355,0.03,147.99,147.96,18.02607638]
[1745889698866,0.03,147.99,147.97,18.02607638]
[1745889699871,0.03,147.99,147.96,0.14216157]
[1745889700089,18.02607638,147.97,147.92,24.1104463]
[1745889700272,18.67964886,147.99,147.91,124.92607638]
[1745889700464,18.02607638,147.97,147.93,0.14216157]
[1745889700779,18.02607638,147.98,147.93,18.02607638]
[1745889700946,18.02607638,147.98,147.94,18.02607638]
[1745889701151,18.02607638,147.98,147.93,24.10988506]
[1745889701551,24.10800983,147.98,147.93,18.02607638]
[1745889701748,18.02607638,147.97,147.92,0.14216157]
[1745889701953,18.02607638,147.96,147.92,18.02607638]
[1745889702359,18.02607638,147.96,147.92,24.11040329]
[1745889702555,18.02607638,147.97,147.92,24.11040329]
[1745889702871,18.02607638,147.98,147.94,18.02607638]
[1745889703072,18.02607638,147.98,147.93,24.11000015]
[1745889703459,18.02607638,147.97,147.93,0.14216157]
[1745889705881,24.10843827,147.97,147.92,18.02607638]
[1745889706064,18.02607638,147.97,147.92,18.02607638]
[1745889706377,18.02607638,147.97,147.93,18.02607638]
[1745889706549,101.57964886,147.99,147.95,18.02607638]
[1745889706756,119.60572524,147.99,147.95,18.02607638]
[1745889707391,119.60572524,147.99,147.91,39.46489027]
[1745889707679,125.68724871,147.99,147.94,18.02607638]
[1745889708083,100.95607638,147.99,147.95,18.02607638]
[1745889708291,82.93,147.99,147.95,18.16823795]
[1745889709377,82.93,147.99,147.96,24.10880144]
[1745889709575,82.93,147.99,147.97,18.02607638]
[1745889709767,0.03,147.99,147.98,18.16823795]
[1745889710276,0.03,147.99,147.98,36.19431433]
[1745889710465,0.03,147.99,147.98,18.16823795]
[1745889712384,0.03,147.99,147.96,18.02607638]
[1745889712677,0.03,147.99,147.95,0.14216157]
[1745889712862,0.03,147.99,147.95,18.16823795]
[1745889713183,0.03,147.99,147.96,18.02607638]
[1745889713773,0.03,147.99,147.97,18.02607638]
[1745889714481,0.03,147.99,147.96,18.02607638]
[1745889715865,0.03,147.99,147.95,6.22492675]
[1745889715866,0.03,147.99,147.95,0.14216157]
[1745889716066,18.05607638,147.99,147.95,18.16823795]
[1745889716957,18.05607638,147.99,147.94,18.02607638]
[1745889717163,18.02607638,147.98,147.94,18.02607638]
[1745889717579,18.02607638,147.98,147.93,18.16823795]
[1745889717994,24.10803934,147.98,147.94,18.02607638]
[1745889718589,24.10803934,147.98,147.93,18.16823795]
[1745889720576,24.10803934,147.98,147.94,18.02607638]
[1745889721085,19.57997638,147.99,147.94,18.02607638]
[1745889721293,0.03,147.99,147.96,18.02607638]
[1745889721589,0.03,147.99,147.97,18.02607638]
[1745889723713,0.03,147.99,147.98,18.02607638]
[1745889726293,0.03,147.99,147.98,24.2501409]
[1745889726802,0.03,147.99,147.98,150.52747622]
[1745889726988,0.03,147.99,147.98,149.17621728]
[1745889727907,0.03,148.0,147.99,0.14216157]
[1745889728103,0.03,148.0,147.99,45.51904947]
[1745889728992,0.03,148.02,148.01,26.14216157]
[1745889729313,0.03,148.02,148.01,126.41897181]
[1745889730206,0.03,148.02,148.01,132.49964203]
[1745889732303,0.03,148.02,148.01,126.41897181]
[1745889732510,0.03,148.02,148.01,98.92607638]
[1745889732816,0.03,148.02,148.01,99.06823795]
[1745889733107,0.03,148.02,148.01,105.0067466]
[1745889733289,0.03,148.02,148.01,105.14890817]
[1745889735020,0.03,148.03,148.01,105.14890817]
[1745889735207,0.03,148.03,148.02,51.54013477]
[1745889735607,0.03,148.03,148.02,43.56621115]
[1745889736004,0.03,148.05,148.04,26.0]
[1745889736214,0.03,148.05,148.04,62.19431433]
[1745889737018,0.03,148.05,148.04,50.24767593]
[1745889738918,0.03,148.05,148.04,131.14767593]
[1745889739099,0.03,148.05,148.04,132.49815607]
[1745889739302,0.03,148.05,148.04,131.14767593]
[1745889739512,0.03,148.05,148.04,132.49817306]
[1745889743507,0.03,148.05,148.04,80.9]
[1745889743812,0.03,148.05,148.04,81.04216157]
[1745889744128,0.03,148.05,148.04,80.9]
[1745889744330,0.03,148.05,148.04,81.04216157]
[1745889744628,0.03,148.05,148.04,18.16823795]
[1745889745433,0.03,148.05,148.04,0.14216157]
[1745889746534,0.03,148.05,148.04,11.38934344]
[1745889747218,0.03,148.05,148.04,17.46878142]
[1745889747730,0.03,148.05,148.04,24.21020744]
[1745889760173,0.03,148.08,148.05,6.14326157]
[1745889760324,0.03,148.08,148.07,44.13076946]
[1745889760325,1e-08,148.08,148.07,44.13076946]
[1745889760668,0.02,148.11,148.1,26.14216157]
[1745889760952,0.02,148.11,148.1,144.36921407]
[1745889761121,0.02,148.11,148.1,143.01937735]
[1745889761553,0.02,148.11,148.1,149.09635236]
[1745889762728,0.02,148.11,148.1,131.10774447]
[1745889762929,0.02,148.11,148.1,132.45773293]
[1745889764049,0.03,148.15,148.11,0.14216157]
[1745889764265,0.03,148.15,148.12,1.34978053]
[1745889764466,0.03,148.15,148.12,15.38978053]
[1745889765845,0.03,148.15,148.13,6.07574427]
[1745889766867,0.03,148.15,148.13,24.06435216]
[1745889767067,0.03,148.15,148.13,24.20651373]
[1745889767879,1e-08,148.14,148.13,25.55632062]
[1745889768072,1e-08,148.14,148.13,106.45632062]
[1745889769562,1e-08,148.14,148.13,51.55632062]
[1745889769874,1e-08,148.15,148.14,44.13076946]
[1745889770068,1e-08,148.15,148.14,125.03076946]
[1745889771070,1e-08,148.15,148.14,131.1061036]
[1745889774373,0.03,148.18,148.14,146.29443895]
[1745889774573,0.03,148.18,148.16,18.13076946]
[1745889775387,0.03,148.18,148.16,24.20528349]
[1745889775679,0.03,148.18,148.16,17.4368661]
[1745889777885,0.03,148.18,148.16,154.20670546]
[1745889778057,0.03,148.18,148.17,37.9517554]
[1745889778676,0.03,148.2,148.19,48.58254257]
[1745889779060,0.03,148.2,148.19,37.36235207]
[1745889779462,0.03,148.2,148.19,54.65582686]
[1745889779964,0.03,148.2,148.19,43.43563636]
[1745889781965,0.03,148.2,148.19,54.65582686]
[1745889785777,0.03,148.2,148.19,60.08118229]
[1745889788593,0.03,148.2,148.19,140.98118229]
[1745889788792,0.03,148.26,148.23,26.0]
[1745889789093,1.6338,148.35,148.29,0.14216157]
[1745889789274,1.6338,148.35,148.34,11.2201905]
[1745889789481,0.03,148.35,148.34,11.36235207]
[1745889791183,0.03,148.35,148.34,17.42949511]
[1745889791493,0.03,148.35,148.34,24.12290036]
[1745889792098,0.03,148.35,148.34,18.05575732]
[1745889793184,0.03,148.35,148.34,24.12290036]
[1745889794408,0.03,148.35,148.34,18.05575732]
[1745889794695,0.03,148.35,148.34,163.69254922]
[1745889794869,0.94068909,148.38,148.37,44.05575732]
[1745889795069,0.94068909,148.38,148.37,131.02167361]
[1745889796197,17.91359575,148.47,148.37,131.02167361]
[1745889796198,1.5819,148.48,148.38,0.14216157]
[1745889796400,1.5819,148.48,148.45,17.91359575]
[1745889797705,7.64339869,148.48,148.45,17.91359575]
[1745889797907,36.56324461,148.47,148.4,0.14216157]
[1745889798092,17.91359575,148.45,148.41,17.91359575]
[1745889798484,17.91359575,148.43,148.35,80.9]
[1745889798802,17.91359575,148.43,148.39,17.91359575]
[1745889799794,6.06387279,148.42,148.39,17.91359575]
[1745889799998,6.06387279,148.42,148.32,22.05781282]
[1745889799999,17.91359575,148.4,148.32,80.9]
[1745889800298,17.91359575,148.38,148.34,17.91359575]
[1745889800770,26.74254886,148.41,148.34,17.91359575]
[1745889800970,17.91359575,148.39,148.35,17.91359575]
[1745889801198,17.91359575,148.38,148.34,17.91359575]
[1745889801576,17.91359575,148.39,148.35,18.05575732]
[1745889801794,17.91359575,148.4,148.35,18.05575732]
[1745889802191,17.91359575,148.39,148.35,0.14216157]
[1745889802396,17.91359575,148.39,148.35,18.05575732]
[1745889802582,14.15724079,148.41,148.35,18.05575732]
[1745889802784,17.91359575,148.4,148.35,18.05575732]
[1745889803003,17.91359575,148.39,148.35,18.05575732]
[1745889805296,17.91359575,148.39,148.35,0.14216157]
[1745889805502,17.91359575,148.39,148.35,18.05575732]
[1745889805689,23.97869557,148.39,148.35,18.05575732]
[1745889806001,17.91359575,148.38,148.34,18.05575732]
[1745889806677,17.91359575,148.38,148.34,0.14216157]
[1745889806877,17.91359575,148.38,148.34,18.05575732]
[1745889808173,17.91359575,148.4,148.36,0.14216157]
[1745889808382,1.5304,148.41,148.38,18.05575732]
[1745889809607,19.44399575,148.41,148.38,0.14216157]
[1745889809901,17.91359575,148.39,148.35,0.14216157]
[1745889810199,17.91359575,148.38,148.35,0.14216157]
[1745889810397,17.91359575,148.37,148.34,0.14216157]
[1745889810795,17.91359575,148.37,148.33,98.81359575]
[1745889811195,17.91359575,148.37,148.34,0.14216157]
[1745889811800,17.91359575,148.37,148.33,98.81359575]
[1745889812207,23.97920181,148.38,148.33,98.81359575]
[1745889813810,17.91359575,148.38,148.33,104.88113078]
[1745889813995,17.91359575,148.38,148.34,17.91359575]
[1745889814197,17.91359575,148.39,148.35,17.91359575]
[1745889814910,6.06475002,148.4,148.35,17.91359575]
[1745889815114,17.91359575,148.39,148.35,17.91359575]
[1745889816908,17.91359575,148.4,148.36,17.91359575]
[1745889817409,17.91359575,148.4,148.35,18.05575732]
[1745889817587,11.19902243,148.39,148.35,11.341184]
[1745889818791,11.19902243,148.39,148.35,0.14216157]
[1745889819111,11.19902243,148.39,148.35,11.341184]
[1745889819511,11.19902243,148.39,148.35,17.40788276]
[1745889819816,17.26382263,148.4,148.36,11.19902243]
[1745889820299,11.19902243,148.39,148.35,11.341184]
[1745889822113,82.9,148.42,148.38,11.19902243]
[1745889822296,32.06354894,148.43,148.39,11.19902243]
[1745889822297,17.26257137,148.43,148.39,11.19902243]
[1745889822798,11.19902243,148.43,148.39,11.19902243]
[1745889823000,12.79522243,148.45,148.41,11.19902243]
[1745889823199,0.03,148.45,148.43,11.19902243]
[1745889823990,0.03,148.45,148.4,1.34723581]
[1745889824196,11.19902243,148.44,148.4,11.341184]
[1745889824396,11.19902243,148.43,148.39,92.09902243]
[1745889825008,11.19902243,148.44,148.4,11.19902243]
[1745889825217,11.19902243,148.44,148.39,80.9]
[1745889825422,11.19902243,148.43,148.39,11.19902243]
[1745889825710,17.9091418,148.43,148.39,17.9091418]
[1745889826096,17.9091418,148.42,148.38,18.05130337]
[1745889826292,17.9091418,148.39,148.37,80.9]
[1745889826505,17.9091418,148.39,148.35,49.97558633]
[1745889826703,17.9091418,148.4,148.36,17.9091418]
[1745889827099,17.9091418,148.4,148.35,32.2086061]
[1745889827100,1.5858,148.42,148.39,17.9091418]
[1745889827300,17.9091418,148.44,148.39,17.9091418]
[1745889827699,17.9391418,148.45,148.4,17.9091418]
[1745889827894,0.03,148.45,148.41,17.9091418]
[1745889828097,17.9391418,148.45,148.41,17.9091418]
[1745889828407,24.00184114,148.45,148.4,17.9091418]
[1745889828605,17.9091418,148.44,148.4,17.9091418]
[1745889829616,17.9091418,148.44,148.39,24.11627053]
[1745889831213,23.9722482,148.44,148.39,24.11627053]
[1745889831520,17.9091418,148.44,148.39,24.11627053]
[1745889833437,17.9091418,148.44,148.4,23.97377305]
[1745889834109,17.9091418,148.44,148.4,17.9091418]
[1745889835824,17.9091418,148.43,148.38,0.14216157]
[1745889836028,17.9091418,148.43,148.38,18.05130337]
[1745889836930,17.9091418,148.43,148.38,24.11655656]
[1745889837530,17.9091418,148.43,148.38,6.20741476]
[1745889837837,17.9091418,148.4,148.37,80.9]
[1745889838129,17.9091418,148.4,148.36,17.9091418]
[1745889839223,23.97386414,148.4,148.36,17.9091418]
[1745889839640,17.9091418,148.4,148.36,17.9091418]
[1745889840023,23.97355223,148.41,148.37,0.14216157]
[1745889840342,17.9091418,148.43,148.38,17.9091418]
[1745889840724,6.09277425,148.45,148.4,17.9091418]
[1745889840928,24.00191605,148.45,148.4,17.9091418]
[1745889841314,17.9091418,148.44,148.4,17.9091418]
[1745889841925,6.09277425,148.45,148.4,17.9091418]
[1745889842114,17.9091418,148.44,148.4,17.9091418]
[1745889843037,17.9091418,148.43,148.39,0.14216157]
[1745889843238,17.9091418,148.42,148.39,0.14216157]
[1745889843545,17.9091418,148.42,148.38,17.9091418]
[1745889843842,17.9091418,148.42,148.37,6.20768231]
[1745889843843,17.9091418,148.39,148.36,80.9]
[1745889844141,17.9091418,148.39,148.35,23.97547295]
[1745889844324,17.9091418,148.4,148.36,0.14216157]
[1745889844640,17.9091418,148.39,148.36,0.14216157]
[1745889845312,17.9091418,148.38,148.35,0.14216157]
[1745889846736,17.9091418,148.39,148.35,0.14216157]
[1745889849321,17.9091418,148.39,148.35,18.05130337]
[1745889850142,23.97428678,148.39,148.35,18.05130337]
[1745889850342,17.9091418,148.36,148.33,14.0]
[1745889850544,17.9091418,148.35,148.32,0.063]
[1745889850714,21.22789179,148.39,148.32,18.11430337]
[1745889851039,23.97476119,148.38,148.34,17.9091418]
[1745889851350,7.58762499,148.4,148.33,0.14216157]
[1745889851554,7.58762499,148.4,148.36,17.9091418]
[1745889851732,20.4412,148.43,148.38,17.9091418]
[1745889852052,14.0,148.43,148.4,17.9091418]
[1745889852254,1.6185,148.44,148.41,17.9091418]
[1745889852425,7.68160454,148.44,148.41,17.9091418]
[1745889853155,25.59074634,148.44,148.4,17.9091418]
[1745889853533,0.03,148.45,148.39,0.14216157]
[1745889853723,17.9091418,148.44,148.4,17.9091418]
[1745889855223,23.97236654,148.44,148.4,17.9091418]
[1745889855552,17.9091418,148.41,148.38,0.14216157]
[1745889856052,6.06322474,148.44,148.39,17.9091418]
[1745889856053,17.9091418,148.43,148.39,17.9091418]
[1745889856559,17.9091418,148.42,148.38,18.05130337]
[1745889856730,17.9091418,148.43,148.39,17.9091418]
[1745889856931,17.9091418,148.42,148.38,0.14216157]
[1745889857235,17.9091418,148.42,148.38,18.05130337]
[1745889857651,23.97308577,148.42,148.38,0.14216157]
[1745889857967,23.97308577,148.42,148.38,18.05130337]
[1745889858157,17.9091418,148.42,148.38,18.05130337]
[1745889858358,23.97270086,148.43,148.38,18.05130337]
[1745889859032,23.97270086,148.43,148.39,17.9091418]
[1745889859852,23.97230087,148.44,148.39,17.9091418]
[1745889860532,23.97230087,148.44,148.39,23.97418359]
[1745889860850,23.97230087,148.44,148.4,17.9091418]
[1745889861848,23.97230087,148.44,148.39,17.9091418]
[1745889864450,17.9091418,148.43,148.39,17.9091418]
[1745889864660,23.9727277,148.43,148.38,18.05130337]
[1745889865136,17.9091418,148.42,148.38,0.14216157]
[1745889865659,17.9091418,148.39,148.35,80.9]
[1745889865836,17.9091418,148.39,148.35,98.8091418]
[1745889866037,17.9091418,148.39,148.36,0.14216157]
[1745889866958,23.97431686,148.39,148.36,0.14216157]
[1745889868163,17.9091418,148.38,148.34,14.0]
[1745889868339,17.9091418,148.38,148.34,17.9091418]
[1745889868539,17.9091418,148.37,148.33,17.9091418]
[1745889869658,23.97539638,148.37,148.33,17.9091418]
[1745889870560,23.97539638,148.37,148.33,0.14216157]
[1745889870858,6.06625458,148.37,148.34,17.9091418]
[1745889871244,23.97539638,148.37,148.33,18.05130337]
[1745889871964,23.97539638,148.37,148.32,0.063]
[1745889871965,17.9091418,148.36,148.32,0.063]
[1745889872345,23.97539638,148.37,148.32,17.9721418]
[1745889872547,100.8091418,148.39,148.35,17.9091418]
[1745889872747,82.9,148.44,148.38,17.9091418]
[1745889872974,23.97219758,148.44,148.39,17.9091418]
[1745889873162,17.9091418,148.43,148.38,17.9091418]
[1745889873771,17.9091418,148.42,148.38,17.9091418]
[1745889873963,23.97321261,148.42,148.38,17.9091418]
[1745889874971,23.97321261,148.42,148.37,18.05130337]
[1745889875857,6.06305578,148.44,148.41,17.9091418]
[1745889876058,0.03,148.45,148.43,17.9091418]
[1745889876379,0.03,148.45,148.44,17.9091418]
[1745889878200,0.03,148.45,148.43,17.9091418]
[1745889879163,0.03,148.45,148.44,17.9091418]
[1745889880791,0.03,148.45,148.43,17.9091418]
[1745889880994,17.9391418,148.45,148.41,17.9091418]
[1745889881490,17.9091418,148.43,148.38,17.9091418]
[1745889881691,17.9091418,148.42,148.38,17.9091418]
[1745889882096,17.9091418,148.41,148.37,31.9091418]
[1745889882294,17.9091418,148.41,148.37,17.9091418]
[1745889883000,23.97379615,148.41,148.37,17.9091418]
[1745889889408,23.97315077,148.42,148.38,17.9091418]
[1745889891206,6.06400897,148.42,148.38,17.9091418]
[1745889891512,23.97315077,148.42,148.38,17.9091418]
[1745889892716,17.9091418,148.41,148.37,0.14216157]
[1745889893616,17.9091418,148.41,148.36,17.9091418]
[1745889893914,17.9091418,148.4,148.36,17.9091418]
[1745889894117,17.9091418,148.4,148.35,18.05130337]
[1745889894887,23.97388348,148.4,148.36,17.9091418]
[1745889895925,23.9735706,148.41,148.36,17.9091418]
[1745889896122,23.9735706,148.41,148.37,17.9091418]
[1745889896415,23.9735586,148.41,148.37,17.9091418]
[1745889898510,6.06387279,148.42,148.37,17.9091418]
[1745889898694,23.97301459,148.42,148.37,17.9091418]
[1745889898896,17.9091418,148.41,148.37,17.9091418]
[1745889899625,17.9091418,148.41,148.36,18.05130337]
[1745889900495,23.97380597,148.41,148.36,18.05130337]
[1745889900691,17.9091418,148.4,148.36,0.14216157]
[1745889900891,17.9091418,148.4,148.33,13.98]